bitfinex-derivatives/quotes_BTCF0:USTF0_20240907
["timestamp","ask_amount","ask_price","bid_price","bid_amount"]
[1725726550910,0.10225682,54747.0,54746.0,0.004]
[1725726553713,0.1261617,54747.0,54746.0,0.004]
[1725726554319,0.8108957,54747.0,54746.0,0.004]
[1725726554523,1.0030957,54747.0,54746.0,0.004]
[1725726556617,1.0060957,54747.0,54746.0,0.001]
[1725726556811,0.091344,54741.0,54738.0,0.05477721]
[1725726557115,0.1,54739.0,54737.0,0.05477721]
[1725726557309,0.091348,54738.0,54737.0,0.05477721]
[1725726557711,0.091348,54738.0,54734.0,0.05477721]
[1725726557712,0.091351,54737.0,54734.0,0.05477721]
[1725726557916,0.02253382,54736.0,54733.0,0.09977721]
[1725726558217,0.1,54735.0,54733.0,0.09977721]
[1725726558717,0.094,54735.0,54733.0,0.09977721]
[1725726559422,0.094,54735.0,54733.0,0.045]
[1725726559606,0.094,54735.0,54732.0,0.05475404]
[1725726559808,0.094,54735.0,54728.0,0.091365]
[1725726559809,0.091357,54733.0,54729.0,0.05475404]
[1725726560004,0.1,54731.0,54728.0,0.14611904]
[1725726560215,0.09,54731.0,54728.0,0.091365]
[1725726560412,0.17336,54731.0,54727.0,0.05475404]
[1725726560618,0.1,54728.0,54726.0,0.05475404]
[1725726560820,0.092,54728.0,54726.0,0.05475404]
[1725726561017,0.092,54728.0,54726.0,0.14612204]
[1725726561218,0.084,54728.0,54726.0,0.14612204]
[1725726561410,0.076,54728.0,54726.0,0.091368]
[1725726561613,0.1,54727.0,54726.0,0.091368]
[1725726563119,0.1,54727.0,54724.0,0.0487]
[1725726563418,0.191367,54727.0,54724.0,0.0487]
[1725726564811,0.191367,54727.0,54719.0,0.09138]
[1725726565017,0.1,54720.0,54719.0,0.09138]
[1725726565816,0.19138,54720.0,54715.0,0.137286]
[1725726566128,0.1,54718.0,54715.0,0.137286]
[1725726566726,0.1,54718.0,54716.0,0.091385]
[1725726566925,0.09138,54720.0,54716.0,0.091385]
[1725726567230,0.10042418,54719.0,54716.0,0.091385]
[1725726567527,0.01351833,54720.0,54715.0,0.0139]
[1725726567719,0.001,54718.0,54717.0,0.191383]
[1725726568430,0.001,54719.0,54718.0,0.09138]
[1725726570531,0.091378,54720.0,54719.0,0.09138]
[1725726572522,0.092378,54720.0,54719.0,0.09138]
[1725726572822,0.10552156,54720.0,54719.0,0.09138]
[1725726579926,0.20552156,54720.0,54719.0,0.09138]
[1725726584327,0.20552156,54720.0,54716.0,0.091385]
[1725726585530,0.20452156,54720.0,54716.0,0.091385]
[1725726585738,0.1,54717.0,54716.0,0.091385]
[1725726587929,0.101,54717.0,54716.0,0.091385]
[1725726589833,0.001,54717.0,54716.0,0.14613904]
[1725726590038,0.001,54717.0,54716.0,0.191385]
[1725726590223,0.001,54717.0,54716.0,0.26435237]
[1725726590427,0.001,54717.0,54716.0,0.191385]
[1725726590723,0.001,54717.0,54716.0,0.16435237]
[1725726590925,0.001,54717.0,54716.0,0.091385]
[1725726594440,0.001,54717.0,54716.0,0.16435237]
[1725726594640,0.001,54717.0,54716.0,0.091385]
[1725726595133,0.001,54717.0,54716.0,0.16448488]
[1725726595525,0.001,54717.0,54716.0,0.091385]
[1725726597135,0.001,54717.0,54716.0,0.16448488]
[1725726597331,0.001,54717.0,54716.0,0.091385]
[1725726598833,0.001,54717.0,54716.0,0.14620929]
[1725726599034,0.001,54717.0,54716.0,0.091385]
[1725726599236,0.091385,54716.0,54714.0,0.07309988]
[1725726599436,0.1,54715.0,54714.0,0.07309988]
[1725726599639,0.1,54715.0,54714.0,0.16448788]
[1725726601138,0.1,54715.0,54714.0,0.091388]
[1725726601639,0.1,54715.0,54714.0,0.14620839]
[1725726602044,0.101,54715.0,54714.0,0.091388]
[1725726602542,0.1,54715.0,54714.0,0.091388]
[1725726606137,0.12240569,54715.0,54714.0,0.091388]
[1725726606437,0.1,54715.0,54714.0,0.091388]
[1725726607433,0.1,54715.0,54707.0,0.01313114]
[1725726607434,0.0953,54716.0,54715.0,0.091387]
[1725726607745,0.01314356,54720.0,54719.0,0.09138]
[1725726607937,0.1,54720.0,54719.0,0.09138]
[1725726608144,0.12287555,54720.0,54719.0,0.09138]
[1725726610051,0.12787555,54720.0,54719.0,0.09138]
[1725726610442,0.21925355,54720.0,54719.0,0.09138]
[1725726611150,0.34089991,54720.0,54719.0,0.09138]
[1725726611355,0.35400948,54720.0,54719.0,0.09138]
[1725726612846,0.35400948,54720.0,54719.0,0.07325531]
[1725726613256,0.42901057,54720.0,54719.0,0.07325531]
[1725726613551,0.72067497,54720.0,54719.0,0.07325531]
[1725726614247,0.64567388,54720.0,54719.0,0.07325531]
[1725726614755,0.55429588,54720.0,54719.0,0.07325531]
[1725726614954,0.44118631,54720.0,54719.0,0.17325531]
[1725726615249,0.14952191,54720.0,54719.0,0.07325531]
[1725726615655,0.14951773,54720.0,54719.0,0.07325531]
[1725726615858,0.22451882,54720.0,54719.0,0.07325531]
[1725726618160,0.02787555,54720.0,54719.0,0.07325531]
[1725726624362,0.005,54720.0,54719.0,0.07325531]
[1725726625660,0.02883203,54720.0,54719.0,0.07325531]
[1725726626168,0.1504672,54720.0,54719.0,0.07325531]
[1725726628771,0.15046716,54720.0,54719.0,0.07325531]
[1725726629070,0.38714874,54720.0,54719.0,0.07325531]
[1725726632063,0.15046716,54720.0,54719.0,0.07325531]
[1725726633262,0.02883203,54720.0,54719.0,0.07325531]
[1725726633462,0.02583203,54720.0,54719.0,0.07325531]
[1725726633673,0.002,54720.0,54719.0,0.07325531]
[1725726635676,0.002,54720.0,54719.0,0.16463531]
[1725726637566,0.091365,54728.0,54727.0,0.091367]
[1725726637869,0.091365,54728.0,54727.0,0.191367]
[1725726638381,0.1157919,54728.0,54727.0,0.191367]
[1725726639270,0.1277919,54728.0,54727.0,0.191367]
[1725726640080,0.1277919,54728.0,54727.0,0.091367]
[1725726641381,0.18387733,54728.0,54727.0,0.091367]
[1725726643170,0.09251233,54728.0,54727.0,0.091367]
[1725726643571,0.0364269,54728.0,54727.0,0.091367]
[1725726643779,0.012,54728.0,54727.0,0.091367]
[1725726647381,0.112,54728.0,54727.0,0.091367]
[1725726647575,0.1599,54728.0,54727.0,0.091367]
[1725726648283,0.44786856,54728.0,54727.0,0.08223031]
[1725726648787,0.47205145,54728.0,54727.0,0.08223031]
[1725726650379,0.37205145,54728.0,54727.0,0.08223031]
[1725726652887,0.28068645,54728.0,54727.0,0.08223031]
[1725726653275,0.28068645,54728.0,54727.0,0.07400728]
[1725726655378,0.2806852,54728.0,54727.0,0.07400728]
[1725726655784,0.25650231,54728.0,54727.0,0.07400728]
[1725726656282,0.0599,54728.0,54727.0,0.07400728]
[1725726660273,0.0813771,54728.0,54717.0,0.05482039]
[1725726660481,0.0813771,54728.0,54714.0,0.07309988]
[1725726660482,0.1,54719.0,54718.0,0.091382]
[1725726662388,0.191381,54719.0,54708.0,0.05482039]
[1725726662594,0.191381,54719.0,54707.0,0.05482039]
[1725726662595,0.1,54710.0,54707.0,0.05482039]
[1725726662789,0.1,54710.0,54703.0,0.1]
[1725726662790,0.1,54710.0,54705.0,0.05482039]
[1725726663092,0.1,54710.0,54709.0,0.091397]
[1725726663277,0.29663374,54710.0,54709.0,0.091397]
[1725726663678,0.31760555,54710.0,54709.0,0.091397]
[1725726663889,0.33401569,54710.0,54705.0,0.091403]
[1725726664187,0.33401569,54710.0,54701.0,0.0953]
[1725726664188,0.1,54706.0,54701.0,0.18671]
[1725726664382,0.14262069,54705.0,54701.0,0.0953]
[1725726664579,0.14262069,54704.0,54701.0,0.0953]
[1725726664780,0.14262069,54703.0,54702.0,0.091408]
[1725726665879,0.14262069,54703.0,54702.0,0.191408]
[1725726666585,0.14362069,54703.0,54702.0,0.191408]
[1725726668982,0.12264888,54703.0,54702.0,0.191408]
[1725726669195,0.35867056,54703.0,54702.0,0.191408]
[1725726671281,0.001,54703.0,54702.0,0.24622839]
[1725726671683,0.001,54703.0,54702.0,0.191408]
[1725726675988,0.001,54703.0,54702.0,0.091408]
[1725726681689,0.091393,54712.0,54711.0,0.091393]
[1725726682289,0.091388,54715.0,54710.0,0.1]
[1725726683193,0.006,54712.0,54711.0,0.091393]
[1725726683589,0.091388,54715.0,54714.0,0.091388]
[1725726683789,0.095388,54715.0,54714.0,0.091388]
[1725726684296,0.01320014,54717.0,54716.0,0.091385]
[1725726684491,0.0498,54721.0,54716.0,0.1]
[1725726684695,0.0498,54721.0,54720.0,0.091378]
[1725726685285,0.10589337,54721.0,54720.0,0.091378]
[1725726685991,0.05609337,54721.0,54720.0,0.191378]
[1725726686304,0.0943,54732.0,54731.0,0.09136]
[1725726686483,0.0464,54732.0,54731.0,0.19136]
[1725726687092,0.0464,54732.0,54731.0,0.09136]
[1725726689296,0.0604,54732.0,54731.0,0.09136]
[1725726692096,0.0604,54732.0,54731.0,0.09036]
[1725726693395,0.11648207,54732.0,54731.0,0.09036]
[1725726697301,0.091366,54728.0,54724.0,0.09137]
[1725726697496,0.05608207,54727.0,54725.0,0.091369]
[1725726697802,0.191366,54728.0,54725.0,0.091369]
[1725726698004,0.05608275,54727.0,54725.0,0.091369]
[1725726698198,0.191366,54728.0,54725.0,0.091369]
[1725726698401,0.05608279,54727.0,54725.0,0.091369]
[1725726698604,0.05608279,54726.0,54725.0,0.091369]
[1725726699102,0.05608279,54727.0,54725.0,0.091369]
[1725726699703,0.06608279,54727.0,54725.0,0.091369]
[1725726699903,0.05608279,54726.0,54725.0,0.091369]
[1725726700802,0.07571318,54726.0,54725.0,0.091369]
[1725726701308,0.08571318,54726.0,54725.0,0.091369]
[1725726701501,0.15124857,54726.0,54725.0,0.08223211]
[1725726702909,0.15125122,54726.0,54725.0,0.08223211]
[1725726706612,0.15125122,54726.0,54725.0,0.0740089]
[1725726707910,0.13162086,54726.0,54725.0,0.0740089]
[1725726708516,0.01,54726.0,54725.0,0.0740089]
[1725726713506,0.101368,54726.0,54725.0,0.0740089]
[1725726716221,0.12186785,54726.0,54725.0,0.0740089]
[1725726716417,0.31847206,54726.0,54725.0,0.0740089]
[1725726719823,0.29797221,54726.0,54725.0,0.0740089]
[1725726720215,0.20660421,54726.0,54725.0,0.0740089]
[1725726720423,0.20660421,54726.0,54725.0,0.1205089]
[1725726721428,0.29797221,54726.0,54725.0,0.0740089]
[1725726721612,0.29797221,54726.0,54718.0,0.0484]
[1725726721613,0.091382,54719.0,54718.0,0.09138]
[1725726721814,0.21300086,54719.0,54718.0,0.09138]
[1725726722328,0.091383,54717.0,54716.0,0.41784145]
[1725726722527,0.21300186,54717.0,54716.0,0.41640145]
[1725726722718,0.28798721,54717.0,54716.0,0.41640145]
[1725726723213,0.21300186,54717.0,54716.0,0.32501645]
[1725726723736,0.091383,54717.0,54716.0,0.32501645]
[1725726725121,0.091383,54717.0,54716.0,0.42501645]
[1725726725320,0.049,54721.0,54717.0,0.091383]
[1725726725628,0.091379,54720.0,54717.0,0.091383]
[1725726727020,0.09138,54719.0,54717.0,0.091383]
[1725726727729,0.091377,54721.0,54720.0,0.091378]
[1725726728815,0.096377,54721.0,54720.0,0.091378]
[1725726730333,0.096377,54721.0,54717.0,0.091383]
[1725726730334,0.091382,54718.0,54717.0,0.091383]
[1725726731530,0.001,54718.0,54717.0,0.091383]
[1725726734241,0.091383,54717.0,54716.0,0.05610814]
[1725726734536,0.091383,54717.0,54716.0,0.05466814]
[1725726737933,0.091383,54717.0,54715.0,0.24605514]
[1725726738242,0.02091939,54716.0,54715.0,0.191387]
[1725726738639,0.14255777,54716.0,54715.0,0.191387]
[1725726739046,0.23394277,54716.0,54715.0,0.191387]
[1725726739348,0.23394277,54716.0,54715.0,0.091387]
[1725726739349,0.16839792,54716.0,54715.0,0.091387]
[1725726745246,0.23394277,54716.0,54715.0,0.091387]
[1725726745750,0.4703648,54716.0,54715.0,0.091387]
[1725726745947,0.16839792,54716.0,54715.0,0.091387]
[1725726746248,0.21302338,54716.0,54715.0,0.091387]
[1725726746650,0.091385,54716.0,54715.0,0.091387]
[1725726747256,0.091385,54716.0,54715.0,0.16448688]
[1725726747843,0.091381,54719.0,54718.0,0.091382]
[1725726748051,0.0465,54722.0,54720.0,0.091377]
[1725726748446,0.10489337,54724.0,54723.0,0.091373]
[1725726748653,0.0493,54731.0,54722.0,0.05477551]
[1725726748847,0.091366,54728.0,54726.0,0.091368]
[1725726749347,0.091366,54728.0,54724.0,0.05477551]
[1725726749348,0.09137,54725.0,54724.0,0.05477551]
[1725726749667,0.09137,54725.0,54718.0,0.09127397]
[1725726749668,0.091375,54722.0,54720.0,0.05477551]
[1725726749952,0.1,54725.0,54719.0,0.05477551]
[1725726749953,0.140877,54721.0,54719.0,0.05477551]
[1725726750548,0.240877,54721.0,54719.0,0.14615551]
[1725726751452,0.243877,54721.0,54720.0,0.05477551]
[1725726753259,0.26515833,54721.0,54720.0,0.05477551]
[1725726753650,0.46179228,54721.0,54719.0,0.09138]
[1725726753952,0.21791528,54720.0,54719.0,0.09138]
[1725726754357,0.14291934,54720.0,54719.0,0.09138]
[1725726757549,0.14591934,54720.0,54719.0,0.09138]
[1725726758464,0.22091528,54720.0,54719.0,0.09138]
[1725726759162,0.31229328,54720.0,54719.0,0.09138]
[1725726760945,0.22091528,54720.0,54719.0,0.09138]
[1725726761145,0.19963395,54720.0,54719.0,0.09138]
[1725726761549,0.19963395,54720.0,54719.0,0.16447988]
[1725726761550,0.003,54720.0,54719.0,0.16447988]
[1725726768061,0.091346,54740.0,54719.0,0.09138]
[1725726768255,0.11290858,54729.0,54728.0,0.091363]
[1725726768761,0.11290858,54729.0,54720.0,0.140178]
[1725726768762,0.091372,54725.0,54724.0,0.091371]
[1725726768955,0.16900397,54725.0,54724.0,0.091371]
[1725726771366,0.16900591,54725.0,54724.0,0.091371]
[1725726772078,0.17400591,54725.0,54724.0,0.091371]
[1725726772791,0.08263391,54725.0,54721.0,0.091376]
[1725726772992,0.091375,54722.0,54721.0,0.091376]
[1725726773296,0.16900891,54722.0,54721.0,0.091376]
[1725726774793,0.17101128,54722.0,54721.0,0.091376]
[1725726774993,0.09138,54719.0,54715.0,0.01338631]
[1725726775192,0.07763628,54718.0,54713.0,0.0455]
[1725726775383,0.07763628,54717.0,54713.0,0.0455]
[1725726775591,0.02154358,54716.0,54713.0,0.0455]
[1725726775794,0.02209762,54715.0,54714.0,0.091388]
[1725726775982,0.02209762,54715.0,54713.0,0.0455]
[1725726776185,0.09138,54719.0,54713.0,0.05872061]
[1725726776397,0.09138,54719.0,54716.0,0.07309632]
[1725726776997,0.09238,54719.0,54716.0,0.07309632]
[1725726777188,0.09238,54719.0,54718.0,0.091382]
[1725726778094,0.09138,54719.0,54718.0,0.091382]
[1725726778398,0.11324064,54719.0,54718.0,0.14620417]
[1725726779688,0.09138,54719.0,54718.0,0.092382]
[1725726780400,0.09238,54719.0,54718.0,0.091382]
[1725726780698,0.091383,54717.0,54715.0,0.26448232]
[1725726781084,0.091385,54716.0,54715.0,0.26448232]
[1725726781499,0.091385,54716.0,54715.0,0.191386]
[1725726781897,0.091385,54716.0,54715.0,0.26448232]
[1725726783701,0.091385,54716.0,54715.0,0.191386]
[1725726784188,0.091383,54718.0,54717.0,0.091382]
[1725726784393,0.11267304,54718.0,54717.0,0.191382]
[1725726785091,0.02129004,54718.0,54717.0,0.191382]
[1725726785288,0.02229004,54718.0,54717.0,0.191382]
[1725726785501,0.001,54718.0,54717.0,0.191382]
[1725726788804,0.02175227,54718.0,54717.0,0.191382]
[1725726789499,0.001,54718.0,54717.0,0.191382]
[1725726790293,0.001,54718.0,54717.0,0.282765]
[1725726790592,0.12263161,54718.0,54717.0,0.282765]
[1725726791389,0.14333777,54718.0,54717.0,0.282765]
[1725726791992,0.14333777,54718.0,54717.0,0.191382]
[1725726793907,0.14333777,54718.0,54717.0,0.282765]
[1725726794791,0.14333578,54718.0,54717.0,0.282765]
[1725726797596,0.14333578,54718.0,54717.0,0.191382]
[1725726797797,0.14333578,54718.0,54717.0,0.282765]
[1725726798410,0.12262962,54718.0,54717.0,0.282765]
[1725726798796,0.001,54718.0,54717.0,0.282765]
[1725726799007,0.001,54718.0,54717.0,0.191382]
[1725726801007,0.092382,54718.0,54717.0,0.091382]
[1725726801609,0.092382,54718.0,54716.0,0.07308744]
[1725726801610,0.091383,54717.0,54716.0,0.07308744]
[1725726801794,0.091385,54716.0,54714.0,0.05481931]
[1725726801999,0.09139,54713.0,54712.0,0.05481931]
[1725726802297,0.091395,54710.0,54709.0,0.05481931]
[1725726802895,0.091395,54710.0,54708.0,0.07308744]
[1725726803396,0.091395,54710.0,54707.0,0.07308744]
[1725726803598,0.091397,54709.0,54707.0,0.07308744]
[1725726804304,0.091397,54709.0,54706.0,0.16448944]
[1725726804498,0.089397,54709.0,54706.0,0.16448944]
[1725726805101,0.090397,54709.0,54706.0,0.16448944]
[1725726805305,0.090397,54709.0,54708.0,0.05475553]
[1725726805512,0.1112953,54709.0,54708.0,0.05475553]
[1725726805806,0.16739587,54709.0,54706.0,0.091402]
[1725726806005,0.07699887,54708.0,54706.0,0.091402]
[1725726806205,0.07699887,54707.0,54706.0,0.091402]
[1725726807198,0.0208983,54707.0,54706.0,0.091402]
[1725726807398,0.05610057,54707.0,54706.0,0.091402]
[1725726807618,0.07699887,54707.0,54706.0,0.091402]
[1725726809313,0.07699887,54707.0,54706.0,0.191402]
[1725726810123,0.05610057,54707.0,54706.0,0.191402]
[1725726810603,0.14750057,54707.0,54706.0,0.191402]
[1725726813810,0.0914,54707.0,54706.0,0.191402]
[1725726814013,0.0914,54707.0,54706.0,0.24611467]
[1725726814212,0.0914,54707.0,54706.0,0.191402]
[1725726817112,0.0914,54707.0,54706.0,0.091402]
[1725726818522,0.0453,54708.0,54707.0,0.0914]
[1725726819022,0.136698,54708.0,54707.0,0.0914]
[1725726820318,1.29366,54708.0,54702.0,0.05469737]
[1725726820521,0.091413,54699.0,54698.0,0.05469737]
[1725726820711,0.1,54700.0,54695.0,0.14763637]
[1725726821023,0.1,54697.0,54695.0,0.091419]
[1725726821613,0.1,54697.0,54694.0,0.05469737]
[1725726821813,0.1475,54697.0,54692.0,0.05469737]
[1725726822011,0.091425,54692.0,54691.0,0.05469737]
[1725726822215,0.091428,54690.0,54688.0,0.05469737]
[1725726822413,0.091428,54690.0,54684.0,0.321]
[1725726822414,0.091428,54690.0,54686.0,0.05469737]
[1725726823421,0.091428,54690.0,54685.0,0.1]
[1725726823422,0.001,54690.0,54689.0,0.09143]
[1725726824011,0.091435,54686.0,54683.0,0.05469737]
[1725726824410,0.091435,54686.0,54682.0,0.1]
[1725726825222,0.091435,54686.0,54683.0,0.091439]
[1725726825721,0.092435,54686.0,54683.0,0.091439]
[1725726826217,0.09144,54683.0,54680.0,0.06069413]
[1725726826923,0.1,54684.0,54680.0,0.0472]
[1725726827223,0.1,54684.0,54679.0,0.091447]
[1725726827818,0.1,54681.0,54674.0,0.0465]
[1725726828019,0.1,54681.0,54668.0,0.07308744]
[1725726828020,0.1,54675.0,54668.0,0.15469737]
[1725726828319,0.1,54675.0,54672.0,0.091458]
[1725726829125,0.001,54684.0,54674.0,0.1]
[1725726829326,0.05716076,54712.0,54667.0,0.00144]
[1725726829327,0.0489,54690.0,54667.0,0.00144]
[1725726829523,0.0489,54690.0,54643.0,0.09127397]
[1725726829524,0.1,54670.0,54645.0,0.091503]
[1725726829726,0.0956,54669.0,54661.0,0.091476]
[1725726829923,0.19,54662.0,54656.0,0.091484]
[1725726830229,0.19,54662.0,54651.0,0.0927]
[1725726830627,0.091477,54661.0,54651.0,0.0927]
[1725726831126,0.091477,54661.0,54650.0,0.19]
[1725726831332,0.1442,54669.0,54659.0,0.19]
[1725726831333,0.091469,54666.0,54659.0,0.19]
[1725726831627,0.091469,54666.0,54660.0,0.091478]
[1725726831829,0.19,54667.0,54659.0,0.19]
[1725726832124,0.10468519,54669.0,54664.0,0.091472]
[1725726832328,0.19,54666.0,54660.0,0.0959]
[1725726832525,0.001,54661.0,54660.0,0.0959]
[1725726833120,0.1464,54677.0,54665.0,0.09147]
[1725726833121,0.19,54672.0,54665.0,0.09147]
[1725726833627,0.19,54668.0,54665.0,0.09147]
[1725726833829,0.281466,54668.0,54660.0,0.0959]
[1725726834017,0.281466,54668.0,54663.0,0.091473]
[1725726834218,0.003,54667.0,54663.0,0.091473]
[1725726834930,0.291466,54668.0,54663.0,0.091473]
[1725726835131,0.2,54668.0,54663.0,0.091473]
[1725726835427,0.008,54667.0,54663.0,0.091473]
[1725726836035,0.091477,54661.0,54658.0,0.091481]
[1725726836933,0.19,54660.0,54654.0,0.091488]
[1725726837327,0.19,54660.0,54651.0,0.321]
[1725726837527,0.19,54660.0,54651.0,0.01319174]
[1725726837724,0.19,54660.0,54650.0,0.19]
[1725726838429,0.19,54660.0,54654.0,0.001]
[1725726838624,0.19,54660.0,54655.0,0.091486]
[1725726839132,0.001,54660.0,54659.0,0.09148]
[1725726840427,0.19,54664.0,54659.0,0.09148]
[1725726840930,0.091477,54662.0,54659.0,0.09148]
[1725726841139,0.003,54660.0,54659.0,0.09148]
[1725726841835,0.19,54661.0,54659.0,0.09148]
[1725726842423,0.003,54660.0,54659.0,0.09148]
[1725726842836,0.094479,54660.0,54659.0,0.09148]
[1725726843023,0.003,54660.0,54659.0,0.09148]
[1725726843533,0.003,54660.0,54659.0,0.28148]
[1725726843737,0.003,54660.0,54659.0,0.09148]
[1725726844432,0.281467,54667.0,54664.0,0.091471]
[1725726844735,0.281467,54667.0,54666.0,0.091469]
[1725726844736,0.19,54667.0,54666.0,0.091469]
[1725726845639,0.281467,54667.0,54666.0,0.091469]
[1725726846940,0.292467,54667.0,54666.0,0.091469]
[1725726848142,0.091471,54665.0,54662.0,0.091474]
[1725726848438,0.091471,54665.0,54656.0,0.01310819]
[1725726848636,0.091471,54665.0,54655.0,0.091486]
[1725726848841,0.091471,54665.0,54664.0,0.091472]
[1725726851336,0.100471,54665.0,54664.0,0.091472]
[1725726851739,0.100471,54665.0,54655.0,0.01307471]
[1725726851740,0.091474,54663.0,54660.0,0.091477]
[1725726851933,0.281474,54663.0,54653.0,0.05469737]
[1725726852133,0.281474,54663.0,54660.0,0.091477]
[1725726853240,0.281474,54663.0,54661.0,0.091476]
[1725726853631,0.091475,54662.0,54661.0,0.091476]
[1725726854537,0.0936,54670.0,54658.0,0.19]
[1725726854731,0.10446447,54676.0,54668.0,0.19]
[1725726854928,0.19,54679.0,54669.0,0.0968]
[1725726855146,0.091446,54680.0,54678.0,0.091447]
[1725726855441,0.091446,54680.0,54679.0,0.091447]
[1725726855828,0.24839099,54684.0,54672.0,0.19]
[1725726856034,0.091444,54681.0,54679.0,0.091445]
[1725726856247,0.281445,54680.0,54679.0,0.091445]
[1725726856536,0.091448,54679.0,54675.0,0.091453]
[1725726856836,0.091448,54679.0,54671.0,0.05469737]
[1725726856837,0.091448,54679.0,54677.0,0.091449]
[1725726857040,0.092448,54679.0,54677.0,0.091449]
[1725726857536,0.091448,54679.0,54677.0,0.091449]
[1725726857741,0.093448,54679.0,54677.0,0.091449]
[1725726858041,0.093448,54679.0,54671.0,0.05469737]
[1725726858237,0.096448,54679.0,54671.0,0.05469737]
[1725726858828,0.096448,54679.0,54678.0,0.091449]
[1725726859036,0.1525815,54679.0,54678.0,0.091449]
[1725726859437,0.0611335,54679.0,54678.0,0.091449]
[1725726860344,0.0561335,54679.0,54671.0,0.003]
[1725726860639,0.19,54673.0,54671.0,0.003]
[1725726860842,0.0474,54679.0,54674.0,0.091454]
[1725726860843,0.19,54676.0,54674.0,0.091454]
[1725726861045,0.05613744,54675.0,54666.0,0.10497808]
[1725726861345,0.05613744,54674.0,54666.0,0.10497808]
[1725726861546,0.05613745,54673.0,54671.0,0.003]
[1725726861747,0.05613745,54672.0,54671.0,0.09446]
[1725726863346,0.05613745,54672.0,54671.0,0.09146]
[1725726863849,0.05613745,54672.0,54661.0,0.01310306]
[1725726863850,0.24813745,54672.0,54661.0,0.01310306]
[1725726864037,0.10393745,54671.0,54660.0,0.0981]
[1725726864343,0.05613745,54670.0,54660.0,0.0981]
[1725726864537,0.05613745,54669.0,54663.0,0.19]
[1725726864745,0.0478,54671.0,54670.0,0.091462]
[1725726864941,0.10394163,54671.0,54670.0,0.091462]
[1725726865133,0.091464,54669.0,54666.0,0.091467]
[1725726865339,0.05614163,54668.0,54666.0,0.091467]
[1725726865540,0.05614163,54667.0,54666.0,0.091467]
[1725726865743,0.091464,54669.0,54667.0,0.091467]
[1725726865744,0.05614236,54668.0,54667.0,0.091467]
[1725726866047,0.091464,54669.0,54667.0,0.091467]
[1725726866460,0.091465,54668.0,54667.0,0.091467]
[1725726868051,0.096465,54668.0,54667.0,0.091467]
[1725726869045,0.005,54668.0,54667.0,0.091467]
[1725726870948,0.096465,54668.0,54667.0,0.091467]
[1725726877652,0.091471,54665.0,54663.0,0.091472]
[1725726878242,0.091471,54665.0,54664.0,0.091472]
[1725726878850,0.005,54668.0,54661.0,0.05469737]
[1725726878851,0.091465,54668.0,54667.0,0.091467]
[1725726880951,0.14760774,54668.0,54667.0,0.091467]
[1725726881146,0.15260774,54668.0,54667.0,0.091467]
[1725726882957,0.06114274,54668.0,54667.0,0.091467]
[1725726886753,0.06114274,54668.0,54667.0,0.10498007]
[1725726887454,0.05714274,54668.0,54667.0,0.10498007]
[1725726889159,0.001,54668.0,54667.0,0.10498007]
[1725726889956,0.001,54668.0,54667.0,0.15982383]
[1725726890155,0.001,54668.0,54667.0,0.091467]
[1725726890863,0.001,54668.0,54667.0,0.14631076]
[1725726891161,0.001,54668.0,54667.0,0.091467]
[1725726891355,0.092465,54668.0,54667.0,0.091467]
[1725726891964,0.139365,54668.0,54665.0,0.05484376]
[1725726892169,0.1,54666.0,54663.0,0.05484376]
[1725726892465,0.091477,54661.0,54655.0,0.05484376]
[1725726892663,0.091487,54655.0,54654.0,0.05484376]
[1725726892966,0.1,54655.0,54652.0,0.091491]
[1725726893875,0.09149,54653.0,54652.0,0.091491]
[1725726894363,0.08949,54653.0,54652.0,0.091491]
[1725726895060,0.003,54655.0,54654.0,0.091489]
[1725726895561,0.0469,54656.0,54654.0,0.091489]
[1725726896160,0.05615564,54655.0,54654.0,0.091489]
[1725726897456,0.06215564,54655.0,54654.0,0.091489]
[1725726900066,0.06215572,54655.0,54654.0,0.091489]
[1725726903362,0.006,54655.0,54654.0,0.091489]
[1725726903567,0.006,54655.0,54654.0,0.182978]
[1725726906165,0.091469,54666.0,54665.0,0.09147]
[1725726906373,0.091464,54669.0,54662.0,0.19]
[1725726907672,0.105464,54669.0,54662.0,0.19]
[1725726907873,0.105464,54669.0,54668.0,0.091465]
[1725726908273,0.295464,54669.0,54668.0,0.091465]
[1725726910075,0.105464,54669.0,54668.0,0.091465]
[1725726910774,0.091469,54666.0,54660.0,0.05472307]
[1725726911076,0.014,54669.0,54668.0,0.001]
[1725726911269,0.13575472,54669.0,54668.0,0.001]
[1725726911864,0.12175472,54669.0,54665.0,0.09147]
[1725726912083,0.012,54666.0,54665.0,0.09147]
[1725726912281,0.06814718,54666.0,54665.0,0.09147]
[1725726912589,0.05514718,54666.0,54665.0,0.09147]
[1725726912879,0.14661618,54666.0,54665.0,0.09147]
[1725726913068,0.12075472,54666.0,54665.0,0.09147]
[1725726914179,0.35705266,54666.0,54665.0,0.09147]
[1725726914381,0.37105266,54666.0,54665.0,0.09147]
[1725726914881,0.30544512,54666.0,54665.0,0.09147]
[1725726915074,0.06914718,54666.0,54665.0,0.09147]
[1725726916073,0.13475472,54666.0,54665.0,0.09147]
[1725726917165,0.13475472,54666.0,54648.0,0.091499]
[1725726917380,0.19,54661.0,54659.0,0.09148]
[1725726917575,0.17166307,54660.0,54659.0,0.09148]
[1725726917775,0.26314207,54660.0,54659.0,0.09148]
[1725726918180,0.26314469,54660.0,54659.0,0.09148]
[1725726918478,0.17166569,54660.0,54659.0,0.09148]
[1725726918680,0.10605815,54660.0,54659.0,0.09148]
[1725726919072,0.11705815,54660.0,54659.0,0.09148]
[1725726919280,0.0609,54660.0,54659.0,0.09148]
[1725726921876,0.011,54660.0,54659.0,0.09148]
[1725726926176,0.0671509,54660.0,54659.0,0.09148]